{"text_format":"1","workbook":"xlsx","n_sheets":5,"sheets":["INFO","Colour","Holistic Matrix","Search and Compare","Sheet1"],"not_rendered":{"charts":0,"images":5,"macros":1,"external_links":0,"defined_names":7,"comments":1,"pivot_tables":0},"unopened":[],"bounds":{"document_bytes":16777216,"sheet_cells":100000,"rows_first":2000,"rows_last":500,"rows_between":2000,"halvings":0,"cell_chars":16384,"cell_head_chars":4096},"cells_cut":0,"cells_raw":0,"read":"whole","date_system":"1900"}

{"sheet":"INFO","index":0,"n_rows":0,"n_cols":0,"rows_kept":0,"cut":false,"hidden":false,"merged":[]}

{"sheet":"Colour","index":1,"n_rows":40,"n_cols":8,"rows_kept":40,"cut":false,"hidden":false,"merged":[]}
[]
[]
[]
[null,null,null,"Input cell. Choose \"group\" first and then a \"type\" you want to consider"]
[]
[null,null,null,"Other then colour no given order of importance as it is on a case by case basis"]
[]
[null,"\"Aspekt of design\" colors",null,"The chosen Design aspekt have following level of impact on corresponding row shown in the middle column "]
[null,null,"High","Please note that this is very crude and will be also be dependend on the acutal layout and scope of the design aspect"]
[null,null,"Middle","Therefor it is to be seen as a crude assessment to be nuansed in qualitive terms to tailored the specific conditions"]
[null,null,"Low"]
[]
[null,"Maximum impact/mitigation column",null,"The forth column (or first for mitigation side) will show the maximum impact of the three design aspect chosen on each side. "]
[null,null,"High"]
[null,null,"Middle"]
[null,null,"Low"]
[]
[]
[]
[null,"Clauses"]
[null,null,null,null,null,"C1",null,"Green indicates that the performace impact also impacts on corresponding clause (row 1-6)"]
[null,"",null,null,"","C2",null,"Note that a single performace impact can relate to several clauses at the same time. "]
[null,"",null,null,"","C3"]
[null,"",null,null,"","C4",null,"Please also note that for some buildings some clauses may not apply"]
[null,null,null,null,null,"C5",null,"and that C1 is not applicable in this context"]
[null,"",null,null,"","C6"]
[]
[]
[]
[null,"Buttons"]
[]
[null,"Clear Table",null,"Clears table and shows the row in default order that are the same as in the matrix"]
[]
[null,"Default Order",null,"Sorts the rows in default order but keeps the chosen aspects you are looking at"]
[]
[null,"Max Shortage",null,"Sorts the rows in maximum shortage impact order. "]
[]
[null,"Max Mitigation",null,"Sorts the rows in maximum shortage mitigation order, from high to low"]
[]
[null,null,null,"Other then color no given order of importance as it is on a case by case basis"]

{"sheet":"Holistic Matrix","index":2,"n_rows":51,"n_cols":34,"rows_kept":51,"cut":false,"hidden":false,"merged":[[12,0,32,0],[0,28,0,33]]}
[null,null,null,null,"HOLISTIC FIRE SAFETY IMPACT MATRIX",null,null,null,null,null,null,null,null,null,null,null,null,null,null,null,null,null,null,null,null,null,null,null,"Clauses C1-C6 Protection from Fire "]
[null,null,null,null,"PERFORMANC IMPACT FOR CONSIDIRATION",null,null,null,null,null,null,null,null,null,null,null,null,null,null,null,null,null,null,null,null,null,null,null,"Please note that C1 is not applicable in this context"]
[null,null,null,2,null,null,null,null,null,null,null,null,null,null,null,null,null,null,null,null,null,null,null,null,null,null,null,2]
[null,null,null,3,null,null,null,null,null,null,null,null,3,3,3,3,null,3,null,3,null,3]
[null,null,null,4,4,4,4,4,4,4,4,4,"",4,4,4,null,4,4,4,4,4,4]
[null,null,null,5,null,null,null,null,null,null,null,null,null,null,5,5,null,5,5,null,null,null,5,5,5,5,5]
[null,null,null,6,null,null,null,null,null,null,null,null,null,6,6]
[null,"Number","Group","Type","ASET","RSET","Detection time (fire initiation to detection)","Cue period (fire detection to occurrence of cue)","Occupant response period (occurrence of cue to recognition of cue)","Occupant delay period (recognition of cue to initiation of movement)","Evacuation movement period (initiation to completion of movement)","False alarms","Fire growth rate and time to key events","Automatic fire control time","Fire severity","Internal Fire spread","External fire spread","Smoke migration","Visibility","Toxic species yield","Toxic species accumulation  ","Smoke yield","Heat exposure","Water Supply","Report to Fire Service","Fire and Emergency rescue operations","Fire Fighting Operations","Security of building","C1","C2","C3","C4","C5","C6"]
[null,1,"PassiveFireControl","Fire cell Compartmentation",3,2,null,1,1,1,1,0,2,1,2,3,null,2,1,0,null,0,null,0,0,2,2,2,null,null,3,4,5]
[null,2,"PassiveFireControl","Smoke barriers",3,2,1,0,1,1,2,1,2,0,0,2,null,3,2,1,null,1,null,0,0,2,2,1,null,null,3,4,5]
[null,3,"PassiveFireControl","External Exposure control",0,0,0,0,1,1,1,0,1,1,0,2,3,2,0,0,null,0,null,1,0,1,2,2,null,null,3,null,5]
[null,4,"PassiveFireControl","Fire Service access",0,1,0,0,0,0,1,0,1,0,0,0,2,0,0,0,null,0,null,2,0,3,3,2,null,null,null,null,5]
["ASPECTS OF DESIGN BEING CONSIDERED",5,"PassiveFireControl","Surface finish",2,0,0,0,0,0,0,0,2,1,0,3,null,0,0,0,null,0,null,0,0,1,1,0,null,null,3,4]
[null,6,"PassiveFireControl","Fire resistance rating",3,2,1,0,0,0,0,0,2,1,3,3,null,0,0,0,null,0,null,0,0,2,2,0,null,null,3,4,5,6]
[null,7,"PassiveFireControl","Fuel load",3,0,1,0,0,0,0,0,3,2,3,2,null,0,0,1,null,3,null,1,0,1,3,0,null,null,3,null,null,6]
[null,8,"PassiveFireControl","Location, nature and status of openings",3,3,2,2,0,0,3,0,2,1,3,2,null,3,1,1,null,1,null,0,0,3,3,2,null,null,3,null,null,6]
[null,9,"PassiveFireControl","Fire cell size",1,3,2,2,0,0,3,0,2,1,3,2,2,2,1,0,null,0,null,2,0,2,2,0,null,null,3,4,5,6]
[null,10,"ActiveFireControl","Sprinklers",3,0,2,2,1,1,1,1,3,3,3,3,1,1,0,0,null,0,null,3,2,2,3,0,null,null,3,4,5,6]
[null,11,"ActiveFireControl","Special hazard suppression",3,0,2,2,1,1,1,1,3,3,1,2,null,1,0,0,null,0,null,1,2,2,3,0,null,null,3,4,5,6]
[null,12,"ActiveFireControl","Internal hydrants",0,0,0,0,0,0,0,0,0,0,0,0,null,0,0,0,null,0,null,3,0,3,3,0,null,null,null,null,5]
[null,13,"ActiveFireControl","Hose reels",0,3,0,0,0,3,0,0,1,0,0,0,null,0,0,0,null,0,null,2,0,1,1,0,null,null,null,4,5]
[null,14,"ActiveFireControl","Manual extinguishers",0,2,0,0,0,3,0,0,1,0,0,0,null,0,0,0,null,0,null,0,0,1,1,0,null,null,null,4,5]
[null,15,"ActiveFireControl","Emergency information",0,3,0,1,3,3,2,1,0,0,0,0,null,0,0,0,null,0,null,0,2,0,0,1,null,null,null,4,5]
[null,16,"ActiveFireControl","Evacuation plan",0,3,0,1,3,3,3,0,0,0,0,0,null,0,0,0,null,0,null,0,2,2,0,1]
[null,17,"ActiveFireControl","Fire Service alarm connection",1,0,0,1,0,0,0,3,1,0,0,0,2,0,0,0,null,0,null,0,3,2,2,0,null,null,null,null,5]
[null,18,"ActiveFireControl","Fire control room",1,2,0,2,2,2,2,0,1,1,0,0,null,0,0,0,null,0,null,0,2,2,2,0,null,null,null,null,5]
[null,19,"ActiveFireControl","Automatic fire detection",2,3,3,3,1,1,1,3,1,2,0,0,null,0,0,0,null,0,null,0,2,1,1,0,null,null,null,4,5]
[null,20,"ActiveFireControl","Fire alarm/warning",0,3,0,3,3,2,2,1,1,0,0,0,null,0,0,0,null,0,null,0,1,1,1,0,null,null,null,4]
[null,21,"ActiveFireControl","Smoke control",3,1,null,0,null,null,1,null,2,2,2,2,null,3,3,null,3,null,3,0,null,3,3,2,null,null,3,4,5,6]
[null,22,"ActiveFireControl","smoke clearance",1,1,null,0,null,null,1,null,null,null,1,null,null,2,null,null,1,null,1,0,0,1,3,2,null,null,null,null,5]
[null,23,"ActiveFireControl","Water supplies",0,0,0,0,0,0,0,0,1,1,0,0,2,0,0,0,null,0,null,3,0,3,3,0,null,null,null,null,5]
[null,24,"Egress","Emergency lighting",0,3,0,0,1,1,3,0,0,0,0,0,null,0,3,0,null,0,null,0,0,2,2,0,null,null,null,4]
[null,25,"Egress","Photoluminescent systems",0,3,0,0,0,1,3,0,0,0,0,0,null,0,3,0,null,0,null,0,0,2,2,0,null,null,null,4]
[null,26,"Egress","Signage",0,3,0,0,0,1,3,0,0,0,0,0,null,0,1,0,null,0,null,0,0,1,0,0,null,null,null,4]
[null,27,"Egress","Egress route design",0,3,0,0,0,1,3,0,0,0,0,0,null,0,1,0,null,0,null,0,0,2,2,2,null,null,null,4]
[null,28,"Location","Proximity to other buildings/hazards",0,0,2,0,0,0,0,1,0,0,0,1,3,0,0,0,null,0,null,0,0,0,3,0,null,null,3,null,5,6]
[null,29,"Location","Proximity to fire stations",0,0,0,0,0,0,0,0,1,0,0,0,null,0,0,0,null,0,null,0,1,3,3,0,null,null,null,null,5]
[null,30,"General","Building security measures",0,3,0,0,0,0,3,0,0,0,0,0,null,0,0,0,null,0,null,0,0,2,2,3,null,2,null,4]
[null,31,"General","Occupant load",0,3,2,0,2,2,3,0,0,0,0,0,null,0,0,0,null,0,null,1,0,3,0,0,null,null,null,4]
[null,32,"General","Occupant characteristics",0,3,2,0,3,3,3,1,0,0,0,0,null,0,0,0,null,0,null,0,1,3,0,1,null,null,null,4]
[null,33,"General","Building use/classification",3,0,0,0,0,0,1,0,1,0,0,1,null,0,0,1,null,1,null,1,0,0,2,2,null,2,null,4]
[null,34,"General","Building size and shape",1,1,2,0,0,0,2,0,1,0,0,1,2,2,0,0,null,0,null,1,0,2,2,1,null,null,3,4,5]
[null,35,"General","Enclosure Size and shape",2,3,2,null,2,2,3,null,3,2,1,1,null,1,2,null,null,null,null,null,null,1,1,null,null,null,3,4,5]
[null,36,"General","Preventative and protective training",1,1,0,0,2,1,1,0,null,0,0,0,null,0,0,1,null,1,null,0,0,0,0,0,null,2,3,4]
[null,37,"General","Maintenance regime",1,1,0,1,0,0,0,3,0,3,0,0,1,1,0,0,null,0,null,1,1,0,0,1,null,2,null,4,5,6]
[null,38,"DesignFire Characteristics","Fire size (HRR)",3,0,2,2,2,2,0,0,3,3,3,3,2,0,0,3,null,3,null,0,0,1,3,0,null,null,3,4,5,6]
[null,39,"DesignFire Characteristics","Flame size",2,0,2,2,2,2,0,0,2,2,3,2,1,0,0,1,null,1,null,0,0,1,2,0,null,null,3,4,5,6]
[null,40,"DesignFire Characteristics","Growth rate",3,0,1,0,1,0,0,0,3,2,2,2,null,0,0,0,null,0,null,0,0,1,2,0,null,null,3,4,5,6]
[null,41,"DesignFire Characteristics","Smoke yield",3,0,2,2,2,2,2,0,3,0,0,2,null,3,2,3,null,3,null,0,0,1,2,0,null,null,null,4,5]
[null,42,"DesignFire Characteristics","Toxic species yield/concentration",3,0,0,0,1,1,2,0,2,0,0,0,null,0,0,3,null,3,null,0,0,1,2,0,null,null,null,4]
[null,43,"DesignFire Characteristics","Smoke optical density",3,0,1,0,1,1,3,0,2,0,0,0,null,2,3,0,null,3,null,0,0,1,2,0,null,null,null,4,5]

{"sheet":"Search and Compare","index":3,"n_rows":42,"n_cols":16,"rows_kept":42,"cut":false,"hidden":false,"merged":[[2,2,2,4],[2,12,2,14],[5,5,6,5],[5,6,6,6],[5,10,6,10],[5,11,6,11]]}
[]
[]
[null,null,"Impact",null,null,null,null,null,"ASPECT",null,null,null,"Mitigation"]
[null,null,null,null,null,null,null,null,"FOR INSTRUCTIONS AND COLOUR CODES SEE \"COLOR TAB\""]
[null,null,null,"Choose group first",null,null,null,null,"Other then color no given order of importance as it is on a case by case basis",null,null,null,null,"Choose group first"]
[null,null,null,null,null,"Maximum  Shortage","Combined impact",null,null,null,"Combined mitigation","Maximum Mitigation"]
[null,"Type",null,null,null,null,null,null,null,null,null,null,null,null,null,"Type"]
[null,"Help1","Im1","Im2","Im3","ImMax","Column1","HDefaultSort","Type","H","Column3","MitMax","Mit1","Mit2","Mit3","HColorResult"]
[null,null,{"$f":"IFERROR(INDEX(Matrix[[Number]:[Security of building]],MATCH(C$7,Matrix[Type],0),MATCH($I9,Matrix[#Headers],0)),\"0\")","v":"0"},{"$f":"IFERROR(INDEX(Matrix[[Number]:[Security of building]],MATCH(D$7,Matrix[Type],0),MATCH($I9,Matrix[#Headers],0)),\"0\")","v":"0"},{"$f":"IFERROR(INDEX(Matrix[[Number]:[Security of building]],MATCH(E$7,Matrix[Type],0),MATCH($I9,Matrix[#Headers],0)),\"0\")","v":"0"},{"$f":"MAX(C9,D9,E9)","v":0},{"$f":"SUM(C9:E9)","v":0},1,{"$f":"Matrix[[#Headers],[ASET]]","v":"ASET"},{"$f":"IF(Table2[[#This Row],[HColorResult]]<1,IF(Table2[[#This Row],[Column3]]+Table2[[#This Row],[Column1]]>0,1,0),2)","v":0},{"$f":"SUM(M9:O9)","v":0},{"$f":"MAX(M9,N9,O9)","v":0},{"$f":"IFERROR(INDEX(Matrix[[Number]:[Security of building]],MATCH(M$7,Matrix[Type],0),MATCH($I9,Matrix[#Headers],0)),\"0\")","v":"0"},{"$f":"IFERROR(INDEX(Matrix[[Number]:[Security of building]],MATCH(N$7,Matrix[Type],0),MATCH($I9,Matrix[#Headers],0)),\"0\")","v":"0"},{"$f":"IFERROR(INDEX(Matrix[[Number]:[Security of building]],MATCH(O$7,Matrix[Type],0),MATCH($I9,Matrix[#Headers],0)),\"0\")","v":"0"},{"$f":"F9-L9","v":0}]
[null,null,{"$f":"IFERROR(INDEX(Matrix[[Number]:[Security of building]],MATCH(C$7,Matrix[Type],0),MATCH($I10,Matrix[#Headers],0)),\"0\")","v":"0"},{"$f":"IFERROR(INDEX(Matrix[[Number]:[Security of building]],MATCH(D$7,Matrix[Type],0),MATCH($I10,Matrix[#Headers],0)),\"0\")","v":"0"},{"$f":"IFERROR(INDEX(Matrix[[Number]:[Security of building]],MATCH(E$7,Matrix[Type],0),MATCH($I10,Matrix[#Headers],0)),\"0\")","v":"0"},0,0,2,{"$f":"Matrix[[#Headers],[RSET]]","v":"RSET"},{"$f":"IF(Table2[[#This Row],[HColorResult]]<1,IF(Table2[[#This Row],[Column3]]+Table2[[#This Row],[Column1]]>0,1,0),2)","v":0},0,0,{"$f":"IFERROR(INDEX(Matrix[[Number]:[Security of building]],MATCH(M$7,Matrix[Type],0),MATCH($I10,Matrix[#Headers],0)),\"0\")","v":"0"},{"$f":"IFERROR(INDEX(Matrix[[Number]:[Security of building]],MATCH(N$7,Matrix[Type],0),MATCH($I10,Matrix[#Headers],0)),\"0\")","v":"0"},{"$f":"IFERROR(INDEX(Matrix[[Number]:[Security of building]],MATCH(O$7,Matrix[Type],0),MATCH($I10,Matrix[#Headers],0)),\"0\")","v":"0"},0]
[null,null,{"$f":"IFERROR(INDEX(Matrix[[Number]:[Security of building]],MATCH(C$7,Matrix[Type],0),MATCH($I11,Matrix[#Headers],0)),\"0\")","v":"0"},{"$f":"IFERROR(INDEX(Matrix[[Number]:[Security of building]],MATCH(D$7,Matrix[Type],0),MATCH($I11,Matrix[#Headers],0)),\"0\")","v":"0"},{"$f":"IFERROR(INDEX(Matrix[[Number]:[Security of building]],MATCH(E$7,Matrix[Type],0),MATCH($I11,Matrix[#Headers],0)),\"0\")","v":"0"},0,0,3,{"$f":"Matrix[[#Headers],[Detection time (fire initiation to detection)]]","v":"Detection time (fire initiation to detection)"},{"$f":"IF(Table2[[#This Row],[HColorResult]]<1,IF(Table2[[#This Row],[Column3]]+Table2[[#This Row],[Column1]]>0,1,0),2)","v":0},0,0,{"$f":"IFERROR(INDEX(Matrix[[Number]:[Security of building]],MATCH(M$7,Matrix[Type],0),MATCH($I11,Matrix[#Headers],0)),\"0\")","v":"0"},{"$f":"IFERROR(INDEX(Matrix[[Number]:[Security of building]],MATCH(N$7,Matrix[Type],0),MATCH($I11,Matrix[#Headers],0)),\"0\")","v":"0"},{"$f":"IFERROR(INDEX(Matrix[[Number]:[Security of building]],MATCH(O$7,Matrix[Type],0),MATCH($I11,Matrix[#Headers],0)),\"0\")","v":"0"},0]
[null,null,{"$f":"IFERROR(INDEX(Matrix[[Number]:[Security of building]],MATCH(C$7,Matrix[Type],0),MATCH($I12,Matrix[#Headers],0)),\"0\")","v":"0"},{"$f":"IFERROR(INDEX(Matrix[[Number]:[Security of building]],MATCH(D$7,Matrix[Type],0),MATCH($I12,Matrix[#Headers],0)),\"0\")","v":"0"},{"$f":"IFERROR(INDEX(Matrix[[Number]:[Security of building]],MATCH(E$7,Matrix[Type],0),MATCH($I12,Matrix[#Headers],0)),\"0\")","v":"0"},0,0,4,{"$f":"Matrix[[#Headers],[Cue period (fire detection to occurrence of cue)]]","v":"Cue period (fire detection to occurrence of cue)"},{"$f":"IF(Table2[[#This Row],[HColorResult]]<1,IF(Table2[[#This Row],[Column3]]+Table2[[#This Row],[Column1]]>0,1,0),2)","v":0},0,0,{"$f":"IFERROR(INDEX(Matrix[[Number]:[Security of building]],MATCH(M$7,Matrix[Type],0),MATCH($I12,Matrix[#Headers],0)),\"0\")","v":"0"},{"$f":"IFERROR(INDEX(Matrix[[Number]:[Security of building]],MATCH(N$7,Matrix[Type],0),MATCH($I12,Matrix[#Headers],0)),\"0\")","v":"0"},{"$f":"IFERROR(INDEX(Matrix[[Number]:[Security of building]],MATCH(O$7,Matrix[Type],0),MATCH($I12,Matrix[#Headers],0)),\"0\")","v":"0"},0]
[null,null,{"$f":"IFERROR(INDEX(Matrix[[Number]:[Security of building]],MATCH(C$7,Matrix[Type],0),MATCH($I13,Matrix[#Headers],0)),\"0\")","v":"0"},{"$f":"IFERROR(INDEX(Matrix[[Number]:[Security of building]],MATCH(D$7,Matrix[Type],0),MATCH($I13,Matrix[#Headers],0)),\"0\")","v":"0"},{"$f":"IFERROR(INDEX(Matrix[[Number]:[Security of building]],MATCH(E$7,Matrix[Type],0),MATCH($I13,Matrix[#Headers],0)),\"0\")","v":"0"},0,0,5,{"$f":"Matrix[[#Headers],[Occupant response period (occurrence of cue to recognition of cue)]]","v":"Occupant response period (occurrence of cue to recognition of cue)"},{"$f":"IF(Table2[[#This Row],[HColorResult]]<1,IF(Table2[[#This Row],[Column3]]+Table2[[#This Row],[Column1]]>0,1,0),2)","v":0},0,0,{"$f":"IFERROR(INDEX(Matrix[[Number]:[Security of building]],MATCH(M$7,Matrix[Type],0),MATCH($I13,Matrix[#Headers],0)),\"0\")","v":"0"},{"$f":"IFERROR(INDEX(Matrix[[Number]:[Security of building]],MATCH(N$7,Matrix[Type],0),MATCH($I13,Matrix[#Headers],0)),\"0\")","v":"0"},{"$f":"IFERROR(INDEX(Matrix[[Number]:[Security of building]],MATCH(O$7,Matrix[Type],0),MATCH($I13,Matrix[#Headers],0)),\"0\")","v":"0"},0]
[null,null,{"$f":"IFERROR(INDEX(Matrix[[Number]:[Security of building]],MATCH(C$7,Matrix[Type],0),MATCH($I14,Matrix[#Headers],0)),\"0\")","v":"0"},{"$f":"IFERROR(INDEX(Matrix[[Number]:[Security of building]],MATCH(D$7,Matrix[Type],0),MATCH($I14,Matrix[#Headers],0)),\"0\")","v":"0"},{"$f":"IFERROR(INDEX(Matrix[[Number]:[Security of building]],MATCH(E$7,Matrix[Type],0),MATCH($I14,Matrix[#Headers],0)),\"0\")","v":"0"},0,0,6,{"$f":"Matrix[[#Headers],[Occupant delay period (recognition of cue to initiation of movement)]]","v":"Occupant delay period (recognition of cue to initiation of movement)"},{"$f":"IF(Table2[[#This Row],[HColorResult]]<1,IF(Table2[[#This Row],[Column3]]+Table2[[#This Row],[Column1]]>0,1,0),2)","v":0},0,0,{"$f":"IFERROR(INDEX(Matrix[[Number]:[Security of building]],MATCH(M$7,Matrix[Type],0),MATCH($I14,Matrix[#Headers],0)),\"0\")","v":"0"},{"$f":"IFERROR(INDEX(Matrix[[Number]:[Security of building]],MATCH(N$7,Matrix[Type],0),MATCH($I14,Matrix[#Headers],0)),\"0\")","v":"0"},{"$f":"IFERROR(INDEX(Matrix[[Number]:[Security of building]],MATCH(O$7,Matrix[Type],0),MATCH($I14,Matrix[#Headers],0)),\"0\")","v":"0"},0]
[null,null,{"$f":"IFERROR(INDEX(Matrix[[Number]:[Security of building]],MATCH(C$7,Matrix[Type],0),MATCH($I15,Matrix[#Headers],0)),\"0\")","v":"0"},{"$f":"IFERROR(INDEX(Matrix[[Number]:[Security of building]],MATCH(D$7,Matrix[Type],0),MATCH($I15,Matrix[#Headers],0)),\"0\")","v":"0"},{"$f":"IFERROR(INDEX(Matrix[[Number]:[Security of building]],MATCH(E$7,Matrix[Type],0),MATCH($I15,Matrix[#Headers],0)),\"0\")","v":"0"},0,0,7,{"$f":"Matrix[[#Headers],[Evacuation movement period (initiation to completion of movement)]]","v":"Evacuation movement period (initiation to completion of movement)"},{"$f":"IF(Table2[[#This Row],[HColorResult]]<1,IF(Table2[[#This Row],[Column3]]+Table2[[#This Row],[Column1]]>0,1,0),2)","v":0},0,0,{"$f":"IFERROR(INDEX(Matrix[[Number]:[Security of building]],MATCH(M$7,Matrix[Type],0),MATCH($I15,Matrix[#Headers],0)),\"0\")","v":"0"},{"$f":"IFERROR(INDEX(Matrix[[Number]:[Security of building]],MATCH(N$7,Matrix[Type],0),MATCH($I15,Matrix[#Headers],0)),\"0\")","v":"0"},{"$f":"IFERROR(INDEX(Matrix[[Number]:[Security of building]],MATCH(O$7,Matrix[Type],0),MATCH($I15,Matrix[#Headers],0)),\"0\")","v":"0"},0]
[null,null,{"$f":"IFERROR(INDEX(Matrix[[Number]:[Security of building]],MATCH(C$7,Matrix[Type],0),MATCH($I16,Matrix[#Headers],0)),\"0\")","v":"0"},{"$f":"IFERROR(INDEX(Matrix[[Number]:[Security of building]],MATCH(D$7,Matrix[Type],0),MATCH($I16,Matrix[#Headers],0)),\"0\")","v":"0"},{"$f":"IFERROR(INDEX(Matrix[[Number]:[Security of building]],MATCH(E$7,Matrix[Type],0),MATCH($I16,Matrix[#Headers],0)),\"0\")","v":"0"},0,0,8,{"$f":"Matrix[[#Headers],[False alarms]]","v":"False alarms"},{"$f":"IF(Table2[[#This Row],[HColorResult]]<1,IF(Table2[[#This Row],[Column3]]+Table2[[#This Row],[Column1]]>0,1,0),2)","v":0},0,0,{"$f":"IFERROR(INDEX(Matrix[[Number]:[Security of building]],MATCH(M$7,Matrix[Type],0),MATCH($I16,Matrix[#Headers],0)),\"0\")","v":"0"},{"$f":"IFERROR(INDEX(Matrix[[Number]:[Security of building]],MATCH(N$7,Matrix[Type],0),MATCH($I16,Matrix[#Headers],0)),\"0\")","v":"0"},{"$f":"IFERROR(INDEX(Matrix[[Number]:[Security of building]],MATCH(O$7,Matrix[Type],0),MATCH($I16,Matrix[#Headers],0)),\"0\")","v":"0"},0]
[null,null,{"$f":"IFERROR(INDEX(Matrix[[Number]:[Security of building]],MATCH(C$7,Matrix[Type],0),MATCH($I17,Matrix[#Headers],0)),\"0\")","v":"0"},{"$f":"IFERROR(INDEX(Matrix[[Number]:[Security of building]],MATCH(D$7,Matrix[Type],0),MATCH($I17,Matrix[#Headers],0)),\"0\")","v":"0"},{"$f":"IFERROR(INDEX(Matrix[[Number]:[Security of building]],MATCH(E$7,Matrix[Type],0),MATCH($I17,Matrix[#Headers],0)),\"0\")","v":"0"},0,0,9,{"$f":"Matrix[[#Headers],[Fire growth rate and time to key events]]","v":"Fire growth rate and time to key events"},{"$f":"IF(Table2[[#This Row],[HColorResult]]<1,IF(Table2[[#This Row],[Column3]]+Table2[[#This Row],[Column1]]>0,1,0),2)","v":0},0,0,{"$f":"IFERROR(INDEX(Matrix[[Number]:[Security of building]],MATCH(M$7,Matrix[Type],0),MATCH($I17,Matrix[#Headers],0)),\"0\")","v":"0"},{"$f":"IFERROR(INDEX(Matrix[[Number]:[Security of building]],MATCH(N$7,Matrix[Type],0),MATCH($I17,Matrix[#Headers],0)),\"0\")","v":"0"},{"$f":"IFERROR(INDEX(Matrix[[Number]:[Security of building]],MATCH(O$7,Matrix[Type],0),MATCH($I17,Matrix[#Headers],0)),\"0\")","v":"0"},0]
[null,null,{"$f":"IFERROR(INDEX(Matrix[[Number]:[Security of building]],MATCH(C$7,Matrix[Type],0),MATCH($I18,Matrix[#Headers],0)),\"0\")","v":"0"},{"$f":"IFERROR(INDEX(Matrix[[Number]:[Security of building]],MATCH(D$7,Matrix[Type],0),MATCH($I18,Matrix[#Headers],0)),\"0\")","v":"0"},{"$f":"IFERROR(INDEX(Matrix[[Number]:[Security of building]],MATCH(E$7,Matrix[Type],0),MATCH($I18,Matrix[#Headers],0)),\"0\")","v":"0"},0,0,10,{"$f":"Matrix[[#Headers],[Automatic fire control time]]","v":"Automatic fire control time"},{"$f":"IF(Table2[[#This Row],[HColorResult]]<1,IF(Table2[[#This Row],[Column3]]+Table2[[#This Row],[Column1]]>0,1,0),2)","v":0},0,0,{"$f":"IFERROR(INDEX(Matrix[[Number]:[Security of building]],MATCH(M$7,Matrix[Type],0),MATCH($I18,Matrix[#Headers],0)),\"0\")","v":"0"},{"$f":"IFERROR(INDEX(Matrix[[Number]:[Security of building]],MATCH(N$7,Matrix[Type],0),MATCH($I18,Matrix[#Headers],0)),\"0\")","v":"0"},{"$f":"IFERROR(INDEX(Matrix[[Number]:[Security of building]],MATCH(O$7,Matrix[Type],0),MATCH($I18,Matrix[#Headers],0)),\"0\")","v":"0"},0]
[null,null,{"$f":"IFERROR(INDEX(Matrix[[Number]:[Security of building]],MATCH(C$7,Matrix[Type],0),MATCH($I19,Matrix[#Headers],0)),\"0\")","v":"0"},{"$f":"IFERROR(INDEX(Matrix[[Number]:[Security of building]],MATCH(D$7,Matrix[Type],0),MATCH($I19,Matrix[#Headers],0)),\"0\")","v":"0"},{"$f":"IFERROR(INDEX(Matrix[[Number]:[Security of building]],MATCH(E$7,Matrix[Type],0),MATCH($I19,Matrix[#Headers],0)),\"0\")","v":"0"},0,0,11,{"$f":"Matrix[[#Headers],[Fire severity]]","v":"Fire severity"},{"$f":"IF(Table2[[#This Row],[HColorResult]]<1,IF(Table2[[#This Row],[Column3]]+Table2[[#This Row],[Column1]]>0,1,0),2)","v":0},0,0,{"$f":"IFERROR(INDEX(Matrix[[Number]:[Security of building]],MATCH(M$7,Matrix[Type],0),MATCH($I19,Matrix[#Headers],0)),\"0\")","v":"0"},{"$f":"IFERROR(INDEX(Matrix[[Number]:[Security of building]],MATCH(N$7,Matrix[Type],0),MATCH($I19,Matrix[#Headers],0)),\"0\")","v":"0"},{"$f":"IFERROR(INDEX(Matrix[[Number]:[Security of building]],MATCH(O$7,Matrix[Type],0),MATCH($I19,Matrix[#Headers],0)),\"0\")","v":"0"},0]
[null,null,{"$f":"IFERROR(INDEX(Matrix[[Number]:[Security of building]],MATCH(C$7,Matrix[Type],0),MATCH($I20,Matrix[#Headers],0)),\"0\")","v":"0"},{"$f":"IFERROR(INDEX(Matrix[[Number]:[Security of building]],MATCH(D$7,Matrix[Type],0),MATCH($I20,Matrix[#Headers],0)),\"0\")","v":"0"},{"$f":"IFERROR(INDEX(Matrix[[Number]:[Security of building]],MATCH(E$7,Matrix[Type],0),MATCH($I20,Matrix[#Headers],0)),\"0\")","v":"0"},0,0,12,{"$f":"Matrix[[#Headers],[Internal Fire spread]]","v":"Internal Fire spread"},{"$f":"IF(Table2[[#This Row],[HColorResult]]<1,IF(Table2[[#This Row],[Column3]]+Table2[[#This Row],[Column1]]>0,1,0),2)","v":0},0,0,{"$f":"IFERROR(INDEX(Matrix[[Number]:[Security of building]],MATCH(M$7,Matrix[Type],0),MATCH($I20,Matrix[#Headers],0)),\"0\")","v":"0"},{"$f":"IFERROR(INDEX(Matrix[[Number]:[Security of building]],MATCH(N$7,Matrix[Type],0),MATCH($I20,Matrix[#Headers],0)),\"0\")","v":"0"},{"$f":"IFERROR(INDEX(Matrix[[Number]:[Security of building]],MATCH(O$7,Matrix[Type],0),MATCH($I20,Matrix[#Headers],0)),\"0\")","v":"0"},0]
[null,null,{"$f":"IFERROR(INDEX(Matrix[[Number]:[Security of building]],MATCH(C$7,Matrix[Type],0),MATCH($I21,Matrix[#Headers],0)),\"0\")","v":"0"},{"$f":"IFERROR(INDEX(Matrix[[Number]:[Security of building]],MATCH(D$7,Matrix[Type],0),MATCH($I21,Matrix[#Headers],0)),\"0\")","v":"0"},{"$f":"IFERROR(INDEX(Matrix[[Number]:[Security of building]],MATCH(E$7,Matrix[Type],0),MATCH($I21,Matrix[#Headers],0)),\"0\")","v":"0"},0,0,13,{"$f":"Matrix[[#Headers],[External fire spread]]","v":"External fire spread"},{"$f":"IF(Table2[[#This Row],[HColorResult]]<1,IF(Table2[[#This Row],[Column3]]+Table2[[#This Row],[Column1]]>0,1,0),2)","v":0},0,0,{"$f":"IFERROR(INDEX(Matrix[[Number]:[Security of building]],MATCH(M$7,Matrix[Type],0),MATCH($I21,Matrix[#Headers],0)),\"0\")","v":"0"},{"$f":"IFERROR(INDEX(Matrix[[Number]:[Security of building]],MATCH(N$7,Matrix[Type],0),MATCH($I21,Matrix[#Headers],0)),\"0\")","v":"0"},{"$f":"IFERROR(INDEX(Matrix[[Number]:[Security of building]],MATCH(O$7,Matrix[Type],0),MATCH($I21,Matrix[#Headers],0)),\"0\")","v":"0"},0]
[null,null,{"$f":"IFERROR(INDEX(Matrix[[Number]:[Security of building]],MATCH(C$7,Matrix[Type],0),MATCH($I22,Matrix[#Headers],0)),\"0\")","v":"0"},{"$f":"IFERROR(INDEX(Matrix[[Number]:[Security of building]],MATCH(D$7,Matrix[Type],0),MATCH($I22,Matrix[#Headers],0)),\"0\")","v":"0"},{"$f":"IFERROR(INDEX(Matrix[[Number]:[Security of building]],MATCH(E$7,Matrix[Type],0),MATCH($I22,Matrix[#Headers],0)),\"0\")","v":"0"},0,0,14,{"$f":"Matrix[[#Headers],[Smoke migration]]","v":"Smoke migration"},{"$f":"IF(Table2[[#This Row],[HColorResult]]<1,IF(Table2[[#This Row],[Column3]]+Table2[[#This Row],[Column1]]>0,1,0),2)","v":0},0,0,{"$f":"IFERROR(INDEX(Matrix[[Number]:[Security of building]],MATCH(M$7,Matrix[Type],0),MATCH($I22,Matrix[#Headers],0)),\"0\")","v":"0"},{"$f":"IFERROR(INDEX(Matrix[[Number]:[Security of building]],MATCH(N$7,Matrix[Type],0),MATCH($I22,Matrix[#Headers],0)),\"0\")","v":"0"},{"$f":"IFERROR(INDEX(Matrix[[Number]:[Security of building]],MATCH(O$7,Matrix[Type],0),MATCH($I22,Matrix[#Headers],0)),\"0\")","v":"0"},0]
[null,null,{"$f":"IFERROR(INDEX(Matrix[[Number]:[Security of building]],MATCH(C$7,Matrix[Type],0),MATCH($I23,Matrix[#Headers],0)),\"0\")","v":"0"},{"$f":"IFERROR(INDEX(Matrix[[Number]:[Security of building]],MATCH(D$7,Matrix[Type],0),MATCH($I23,Matrix[#Headers],0)),\"0\")","v":"0"},{"$f":"IFERROR(INDEX(Matrix[[Number]:[Security of building]],MATCH(E$7,Matrix[Type],0),MATCH($I23,Matrix[#Headers],0)),\"0\")","v":"0"},0,0,15,{"$f":"Matrix[[#Headers],[Visibility]]","v":"Visibility"},{"$f":"IF(Table2[[#This Row],[HColorResult]]<1,IF(Table2[[#This Row],[Column3]]+Table2[[#This Row],[Column1]]>0,1,0),2)","v":0},0,0,{"$f":"IFERROR(INDEX(Matrix[[Number]:[Security of building]],MATCH(M$7,Matrix[Type],0),MATCH($I23,Matrix[#Headers],0)),\"0\")","v":"0"},{"$f":"IFERROR(INDEX(Matrix[[Number]:[Security of building]],MATCH(N$7,Matrix[Type],0),MATCH($I23,Matrix[#Headers],0)),\"0\")","v":"0"},{"$f":"IFERROR(INDEX(Matrix[[Number]:[Security of building]],MATCH(O$7,Matrix[Type],0),MATCH($I23,Matrix[#Headers],0)),\"0\")","v":"0"},0]
[null,null,{"$f":"IFERROR(INDEX(Matrix[[Number]:[Security of building]],MATCH(C$7,Matrix[Type],0),MATCH($I24,Matrix[#Headers],0)),\"0\")","v":"0"},{"$f":"IFERROR(INDEX(Matrix[[Number]:[Security of building]],MATCH(D$7,Matrix[Type],0),MATCH($I24,Matrix[#Headers],0)),\"0\")","v":"0"},{"$f":"IFERROR(INDEX(Matrix[[Number]:[Security of building]],MATCH(E$7,Matrix[Type],0),MATCH($I24,Matrix[#Headers],0)),\"0\")","v":"0"},0,0,16,{"$f":"Matrix[[#Headers],[Toxic species yield]]","v":"Toxic species yield"},{"$f":"IF(Table2[[#This Row],[HColorResult]]<1,IF(Table2[[#This Row],[Column3]]+Table2[[#This Row],[Column1]]>0,1,0),2)","v":0},0,0,{"$f":"IFERROR(INDEX(Matrix[[Number]:[Security of building]],MATCH(M$7,Matrix[Type],0),MATCH($I24,Matrix[#Headers],0)),\"0\")","v":"0"},{"$f":"IFERROR(INDEX(Matrix[[Number]:[Security of building]],MATCH(N$7,Matrix[Type],0),MATCH($I24,Matrix[#Headers],0)),\"0\")","v":"0"},{"$f":"IFERROR(INDEX(Matrix[[Number]:[Security of building]],MATCH(O$7,Matrix[Type],0),MATCH($I24,Matrix[#Headers],0)),\"0\")","v":"0"},0]
[null,null,{"$f":"IFERROR(INDEX(Matrix[[Number]:[Security of building]],MATCH(C$7,Matrix[Type],0),MATCH($I25,Matrix[#Headers],0)),\"0\")","v":"0"},{"$f":"IFERROR(INDEX(Matrix[[Number]:[Security of building]],MATCH(D$7,Matrix[Type],0),MATCH($I25,Matrix[#Headers],0)),\"0\")","v":"0"},{"$f":"IFERROR(INDEX(Matrix[[Number]:[Security of building]],MATCH(E$7,Matrix[Type],0),MATCH($I25,Matrix[#Headers],0)),\"0\")","v":"0"},0,0,17,{"$f":"Matrix[[#Headers],[Toxic species accumulation  ]]","v":"Toxic species accumulation  "},{"$f":"IF(Table2[[#This Row],[HColorResult]]<1,IF(Table2[[#This Row],[Column3]]+Table2[[#This Row],[Column1]]>0,1,0),2)","v":0},0,0,{"$f":"IFERROR(INDEX(Matrix[[Number]:[Security of building]],MATCH(M$7,Matrix[Type],0),MATCH($I25,Matrix[#Headers],0)),\"0\")","v":"0"},{"$f":"IFERROR(INDEX(Matrix[[Number]:[Security of building]],MATCH(N$7,Matrix[Type],0),MATCH($I25,Matrix[#Headers],0)),\"0\")","v":"0"},{"$f":"IFERROR(INDEX(Matrix[[Number]:[Security of building]],MATCH(O$7,Matrix[Type],0),MATCH($I25,Matrix[#Headers],0)),\"0\")","v":"0"},0]
[null,null,{"$f":"IFERROR(INDEX(Matrix[[Number]:[Security of building]],MATCH(C$7,Matrix[Type],0),MATCH($I26,Matrix[#Headers],0)),\"0\")","v":"0"},{"$f":"IFERROR(INDEX(Matrix[[Number]:[Security of building]],MATCH(D$7,Matrix[Type],0),MATCH($I26,Matrix[#Headers],0)),\"0\")","v":"0"},{"$f":"IFERROR(INDEX(Matrix[[Number]:[Security of building]],MATCH(E$7,Matrix[Type],0),MATCH($I26,Matrix[#Headers],0)),\"0\")","v":"0"},0,0,18,{"$f":"Matrix[[#Headers],[Smoke yield]]","v":"Smoke yield"},{"$f":"IF(Table2[[#This Row],[HColorResult]]<1,IF(Table2[[#This Row],[Column3]]+Table2[[#This Row],[Column1]]>0,1,0),2)","v":0},0,0,{"$f":"IFERROR(INDEX(Matrix[[Number]:[Security of building]],MATCH(M$7,Matrix[Type],0),MATCH($I26,Matrix[#Headers],0)),\"0\")","v":"0"},{"$f":"IFERROR(INDEX(Matrix[[Number]:[Security of building]],MATCH(N$7,Matrix[Type],0),MATCH($I26,Matrix[#Headers],0)),\"0\")","v":"0"},{"$f":"IFERROR(INDEX(Matrix[[Number]:[Security of building]],MATCH(O$7,Matrix[Type],0),MATCH($I26,Matrix[#Headers],0)),\"0\")","v":"0"},0]
[null,null,{"$f":"IFERROR(INDEX(Matrix[[Number]:[Security of building]],MATCH(C$7,Matrix[Type],0),MATCH($I27,Matrix[#Headers],0)),\"0\")","v":"0"},{"$f":"IFERROR(INDEX(Matrix[[Number]:[Security of building]],MATCH(D$7,Matrix[Type],0),MATCH($I27,Matrix[#Headers],0)),\"0\")","v":"0"},{"$f":"IFERROR(INDEX(Matrix[[Number]:[Security of building]],MATCH(E$7,Matrix[Type],0),MATCH($I27,Matrix[#Headers],0)),\"0\")","v":"0"},0,0,19,{"$f":"Matrix[[#Headers],[Heat exposure]]","v":"Heat exposure"},{"$f":"IF(Table2[[#This Row],[HColorResult]]<1,IF(Table2[[#This Row],[Column3]]+Table2[[#This Row],[Column1]]>0,1,0),2)","v":0},0,0,{"$f":"IFERROR(INDEX(Matrix[[Number]:[Security of building]],MATCH(M$7,Matrix[Type],0),MATCH($I27,Matrix[#Headers],0)),\"0\")","v":"0"},{"$f":"IFERROR(INDEX(Matrix[[Number]:[Security of building]],MATCH(N$7,Matrix[Type],0),MATCH($I27,Matrix[#Headers],0)),\"0\")","v":"0"},{"$f":"IFERROR(INDEX(Matrix[[Number]:[Security of building]],MATCH(O$7,Matrix[Type],0),MATCH($I27,Matrix[#Headers],0)),\"0\")","v":"0"},0]
[null,null,{"$f":"IFERROR(INDEX(Matrix[[Number]:[Security of building]],MATCH(C$7,Matrix[Type],0),MATCH($I28,Matrix[#Headers],0)),\"0\")","v":"0"},{"$f":"IFERROR(INDEX(Matrix[[Number]:[Security of building]],MATCH(D$7,Matrix[Type],0),MATCH($I28,Matrix[#Headers],0)),\"0\")","v":"0"},{"$f":"IFERROR(INDEX(Matrix[[Number]:[Security of building]],MATCH(E$7,Matrix[Type],0),MATCH($I28,Matrix[#Headers],0)),\"0\")","v":"0"},0,0,20,{"$f":"Matrix[[#Headers],[Water Supply]]","v":"Water Supply"},{"$f":"IF(Table2[[#This Row],[HColorResult]]<1,IF(Table2[[#This Row],[Column3]]+Table2[[#This Row],[Column1]]>0,1,0),2)","v":0},0,0,{"$f":"IFERROR(INDEX(Matrix[[Number]:[Security of building]],MATCH(M$7,Matrix[Type],0),MATCH($I28,Matrix[#Headers],0)),\"0\")","v":"0"},{"$f":"IFERROR(INDEX(Matrix[[Number]:[Security of building]],MATCH(N$7,Matrix[Type],0),MATCH($I28,Matrix[#Headers],0)),\"0\")","v":"0"},{"$f":"IFERROR(INDEX(Matrix[[Number]:[Security of building]],MATCH(O$7,Matrix[Type],0),MATCH($I28,Matrix[#Headers],0)),\"0\")","v":"0"},0]
[null,null,{"$f":"IFERROR(INDEX(Matrix[[Number]:[Security of building]],MATCH(C$7,Matrix[Type],0),MATCH($I29,Matrix[#Headers],0)),\"0\")","v":"0"},{"$f":"IFERROR(INDEX(Matrix[[Number]:[Security of building]],MATCH(D$7,Matrix[Type],0),MATCH($I29,Matrix[#Headers],0)),\"0\")","v":"0"},{"$f":"IFERROR(INDEX(Matrix[[Number]:[Security of building]],MATCH(E$7,Matrix[Type],0),MATCH($I29,Matrix[#Headers],0)),\"0\")","v":"0"},0,0,21,{"$f":"Matrix[[#Headers],[Report to Fire Service]]","v":"Report to Fire Service"},{"$f":"IF(Table2[[#This Row],[HColorResult]]<1,IF(Table2[[#This Row],[Column3]]+Table2[[#This Row],[Column1]]>0,1,0),2)","v":0},0,0,{"$f":"IFERROR(INDEX(Matrix[[Number]:[Security of building]],MATCH(M$7,Matrix[Type],0),MATCH($I29,Matrix[#Headers],0)),\"0\")","v":"0"},{"$f":"IFERROR(INDEX(Matrix[[Number]:[Security of building]],MATCH(N$7,Matrix[Type],0),MATCH($I29,Matrix[#Headers],0)),\"0\")","v":"0"},{"$f":"IFERROR(INDEX(Matrix[[Number]:[Security of building]],MATCH(O$7,Matrix[Type],0),MATCH($I29,Matrix[#Headers],0)),\"0\")","v":"0"},0]
[null,null,{"$f":"IFERROR(INDEX(Matrix[[Number]:[Security of building]],MATCH(C$7,Matrix[Type],0),MATCH($I30,Matrix[#Headers],0)),\"0\")","v":"0"},{"$f":"IFERROR(INDEX(Matrix[[Number]:[Security of building]],MATCH(D$7,Matrix[Type],0),MATCH($I30,Matrix[#Headers],0)),\"0\")","v":"0"},{"$f":"IFERROR(INDEX(Matrix[[Number]:[Security of building]],MATCH(E$7,Matrix[Type],0),MATCH($I30,Matrix[#Headers],0)),\"0\")","v":"0"},0,0,22,{"$f":"Matrix[[#Headers],[Fire and Emergency rescue operations]]","v":"Fire and Emergency rescue operations"},{"$f":"IF(Table2[[#This Row],[HColorResult]]<1,IF(Table2[[#This Row],[Column3]]+Table2[[#This Row],[Column1]]>0,1,0),2)","v":0},0,0,{"$f":"IFERROR(INDEX(Matrix[[Number]:[Security of building]],MATCH(M$7,Matrix[Type],0),MATCH($I30,Matrix[#Headers],0)),\"0\")","v":"0"},{"$f":"IFERROR(INDEX(Matrix[[Number]:[Security of building]],MATCH(N$7,Matrix[Type],0),MATCH($I30,Matrix[#Headers],0)),\"0\")","v":"0"},{"$f":"IFERROR(INDEX(Matrix[[Number]:[Security of building]],MATCH(O$7,Matrix[Type],0),MATCH($I30,Matrix[#Headers],0)),\"0\")","v":"0"},0]
[null,null,{"$f":"IFERROR(INDEX(Matrix[[Number]:[Security of building]],MATCH(C$7,Matrix[Type],0),MATCH($I31,Matrix[#Headers],0)),\"0\")","v":"0"},{"$f":"IFERROR(INDEX(Matrix[[Number]:[Security of building]],MATCH(D$7,Matrix[Type],0),MATCH($I31,Matrix[#Headers],0)),\"0\")","v":"0"},{"$f":"IFERROR(INDEX(Matrix[[Number]:[Security of building]],MATCH(E$7,Matrix[Type],0),MATCH($I31,Matrix[#Headers],0)),\"0\")","v":"0"},0,0,23,{"$f":"Matrix[[#Headers],[Fire Fighting Operations]]","v":"Fire Fighting Operations"},{"$f":"IF(Table2[[#This Row],[HColorResult]]<1,IF(Table2[[#This Row],[Column3]]+Table2[[#This Row],[Column1]]>0,1,0),2)","v":0},0,0,{"$f":"IFERROR(INDEX(Matrix[[Number]:[Security of building]],MATCH(M$7,Matrix[Type],0),MATCH($I31,Matrix[#Headers],0)),\"0\")","v":"0"},{"$f":"IFERROR(INDEX(Matrix[[Number]:[Security of building]],MATCH(N$7,Matrix[Type],0),MATCH($I31,Matrix[#Headers],0)),\"0\")","v":"0"},{"$f":"IFERROR(INDEX(Matrix[[Number]:[Security of building]],MATCH(O$7,Matrix[Type],0),MATCH($I31,Matrix[#Headers],0)),\"0\")","v":"0"},0]
[null,null,{"$f":"IFERROR(INDEX(Matrix[[Number]:[Security of building]],MATCH(C$7,Matrix[Type],0),MATCH($I32,Matrix[#Headers],0)),\"0\")","v":"0"},{"$f":"IFERROR(INDEX(Matrix[[Number]:[Security of building]],MATCH(D$7,Matrix[Type],0),MATCH($I32,Matrix[#Headers],0)),\"0\")","v":"0"},{"$f":"IFERROR(INDEX(Matrix[[Number]:[Security of building]],MATCH(E$7,Matrix[Type],0),MATCH($I32,Matrix[#Headers],0)),\"0\")","v":"0"},0,0,24,{"$f":"Matrix[[#Headers],[Security of building]]","v":"Security of building"},{"$f":"IF(Table2[[#This Row],[HColorResult]]<1,IF(Table2[[#This Row],[Column3]]+Table2[[#This Row],[Column1]]>0,1,0),2)","v":0},0,0,{"$f":"IFERROR(INDEX(Matrix[[Number]:[Security of building]],MATCH(M$7,Matrix[Type],0),MATCH($I32,Matrix[#Headers],0)),\"0\")","v":"0"},{"$f":"IFERROR(INDEX(Matrix[[Number]:[Security of building]],MATCH(N$7,Matrix[Type],0),MATCH($I32,Matrix[#Headers],0)),\"0\")","v":"0"},{"$f":"IFERROR(INDEX(Matrix[[Number]:[Security of building]],MATCH(O$7,Matrix[Type],0),MATCH($I32,Matrix[#Headers],0)),\"0\")","v":"0"},0]
[]
[null,null,null,null,null,null,null,null,"Impact on C clauses for reference"]
[null,"Not applicable in this context",{"$f":"IF(ISBLANK(C$7),\"\",IFERROR(INDEX(Matrix[[Number]:[C6]],MATCH(C$7,Matrix[Type],0),$H35),\"\"))","v":""},{"$f":"IF(ISBLANK(D$7),\"\",IFERROR(INDEX(Matrix[[Number]:[C6]],MATCH(D$7,Matrix[Type],0),$H35),\"\"))","v":""},{"$f":"IF(ISBLANK(E$7),\"\",IFERROR(INDEX(Matrix[[Number]:[C6]],MATCH(E$7,Matrix[Type],0),$H35),\"\"))","v":""},{"$f":"IF(G35=0,\"\",I35)","v":""},{"$f":"SUM(C35:E35)","v":0},28,"C1",null,{"$f":"SUM(M35:O35)","v":0},{"$f":"IF(K35=0,\"\",I35)","v":""},{"$f":"IF(ISBLANK(M$7),\"\",IFERROR(INDEX(Matrix[[Number]:[C6]],MATCH(M$7,Matrix[Type],0),$H35),\"\"))","v":""},{"$f":"IF(ISBLANK(N$7),\"\",IFERROR(INDEX(Matrix[[Number]:[C6]],MATCH(N$7,Matrix[Type],0),$H35),\"\"))","v":""},{"$f":"IF(ISBLANK(O$7),\"\",IFERROR(INDEX(Matrix[[Number]:[C6]],MATCH(O$7,Matrix[Type],0),$H35),\"\"))","v":""},"Not applicable in this context"]
[null,null,{"$f":"IF(ISBLANK(C$7),\"\",IFERROR(INDEX(Matrix[[Number]:[C6]],MATCH(C$7,Matrix[Type],0),$H36),\"\"))","v":""},{"$f":"IF(ISBLANK(D$7),\"\",IFERROR(INDEX(Matrix[[Number]:[C6]],MATCH(D$7,Matrix[Type],0),$H36),\"\"))","v":""},{"$f":"IF(ISBLANK(E$7),\"\",IFERROR(INDEX(Matrix[[Number]:[C6]],MATCH(E$7,Matrix[Type],0),$H36),\"\"))","v":""},{"$f":"IF(G36=0,\"\",I36)","v":""},{"$f":"SUM(C36:E36)","v":0},29,"C2",null,{"$f":"SUM(M36:O36)","v":0},{"$f":"IF(K36=0,\"\",I36)","v":""},{"$f":"IF(ISBLANK(M$7),\"\",IFERROR(INDEX(Matrix[[Number]:[C6]],MATCH(M$7,Matrix[Type],0),$H36),\"\"))","v":""},{"$f":"IF(ISBLANK(N$7),\"\",IFERROR(INDEX(Matrix[[Number]:[C6]],MATCH(N$7,Matrix[Type],0),$H36),\"\"))","v":""},{"$f":"IF(ISBLANK(O$7),\"\",IFERROR(INDEX(Matrix[[Number]:[C6]],MATCH(O$7,Matrix[Type],0),$H36),\"\"))","v":""}]
[null,null,{"$f":"IF(ISBLANK(C$7),\"\",IFERROR(INDEX(Matrix[[Number]:[C6]],MATCH(C$7,Matrix[Type],0),$H37),\"\"))","v":""},{"$f":"IF(ISBLANK(D$7),\"\",IFERROR(INDEX(Matrix[[Number]:[C6]],MATCH(D$7,Matrix[Type],0),$H37),\"\"))","v":""},{"$f":"IF(ISBLANK(E$7),\"\",IFERROR(INDEX(Matrix[[Number]:[C6]],MATCH(E$7,Matrix[Type],0),$H37),\"\"))","v":""},"",0,30,"C3",null,0,"",{"$f":"IF(ISBLANK(M$7),\"\",IFERROR(INDEX(Matrix[[Number]:[C6]],MATCH(M$7,Matrix[Type],0),$H37),\"\"))","v":""},{"$f":"IF(ISBLANK(N$7),\"\",IFERROR(INDEX(Matrix[[Number]:[C6]],MATCH(N$7,Matrix[Type],0),$H37),\"\"))","v":""},{"$f":"IF(ISBLANK(O$7),\"\",IFERROR(INDEX(Matrix[[Number]:[C6]],MATCH(O$7,Matrix[Type],0),$H37),\"\"))","v":""}]
[null,null,{"$f":"IF(ISBLANK(C$7),\"\",IFERROR(INDEX(Matrix[[Number]:[C6]],MATCH(C$7,Matrix[Type],0),$H38),\"\"))","v":""},{"$f":"IF(ISBLANK(D$7),\"\",IFERROR(INDEX(Matrix[[Number]:[C6]],MATCH(D$7,Matrix[Type],0),$H38),\"\"))","v":""},{"$f":"IF(ISBLANK(E$7),\"\",IFERROR(INDEX(Matrix[[Number]:[C6]],MATCH(E$7,Matrix[Type],0),$H38),\"\"))","v":""},"",0,31,"C4",null,0,"",{"$f":"IF(ISBLANK(M$7),\"\",IFERROR(INDEX(Matrix[[Number]:[C6]],MATCH(M$7,Matrix[Type],0),$H38),\"\"))","v":""},{"$f":"IF(ISBLANK(N$7),\"\",IFERROR(INDEX(Matrix[[Number]:[C6]],MATCH(N$7,Matrix[Type],0),$H38),\"\"))","v":""},{"$f":"IF(ISBLANK(O$7),\"\",IFERROR(INDEX(Matrix[[Number]:[C6]],MATCH(O$7,Matrix[Type],0),$H38),\"\"))","v":""}]
[null,null,{"$f":"IF(ISBLANK(C$7),\"\",IFERROR(INDEX(Matrix[[Number]:[C6]],MATCH(C$7,Matrix[Type],0),$H39),\"\"))","v":""},{"$f":"IF(ISBLANK(D$7),\"\",IFERROR(INDEX(Matrix[[Number]:[C6]],MATCH(D$7,Matrix[Type],0),$H39),\"\"))","v":""},{"$f":"IF(ISBLANK(E$7),\"\",IFERROR(INDEX(Matrix[[Number]:[C6]],MATCH(E$7,Matrix[Type],0),$H39),\"\"))","v":""},"",0,32,"C5",null,0,"",{"$f":"IF(ISBLANK(M$7),\"\",IFERROR(INDEX(Matrix[[Number]:[C6]],MATCH(M$7,Matrix[Type],0),$H39),\"\"))","v":""},{"$f":"IF(ISBLANK(N$7),\"\",IFERROR(INDEX(Matrix[[Number]:[C6]],MATCH(N$7,Matrix[Type],0),$H39),\"\"))","v":""},{"$f":"IF(ISBLANK(O$7),\"\",IFERROR(INDEX(Matrix[[Number]:[C6]],MATCH(O$7,Matrix[Type],0),$H39),\"\"))","v":""}]
[null,null,{"$f":"IF(ISBLANK(C$7),\"\",IFERROR(INDEX(Matrix[[Number]:[C6]],MATCH(C$7,Matrix[Type],0),$H40),\"\"))","v":""},{"$f":"IF(ISBLANK(D$7),\"\",IFERROR(INDEX(Matrix[[Number]:[C6]],MATCH(D$7,Matrix[Type],0),$H40),\"\"))","v":""},{"$f":"IF(ISBLANK(E$7),\"\",IFERROR(INDEX(Matrix[[Number]:[C6]],MATCH(E$7,Matrix[Type],0),$H40),\"\"))","v":""},"",0,33,"C6",null,0,"",{"$f":"IF(ISBLANK(M$7),\"\",IFERROR(INDEX(Matrix[[Number]:[C6]],MATCH(M$7,Matrix[Type],0),$H40),\"\"))","v":""},{"$f":"IF(ISBLANK(N$7),\"\",IFERROR(INDEX(Matrix[[Number]:[C6]],MATCH(N$7,Matrix[Type],0),$H40),\"\"))","v":""},{"$f":"IF(ISBLANK(O$7),\"\",IFERROR(INDEX(Matrix[[Number]:[C6]],MATCH(O$7,Matrix[Type],0),$H40),\"\"))","v":""}]
[null,null,"Please note that for some buildings some clauses may not apply",null,null,null,null,null,null,null,null,null,null,null,"Please note that for some buildings some clauses may not apply"]
[null,null,"and that C1 is not applicable in this context",null,null,null,null,null,null,null,null,null,null,null,"and that C1 is not applicable in this context"]

{"sheet":"Sheet1","index":4,"n_rows":23,"n_cols":10,"rows_kept":23,"cut":false,"hidden":true,"merged":[]}
[]
[]
[]
[]
[]
[]
[]
[]
[]
[null,null,null,"PassiveFireControl","Fire cell Compartmentation","Sprinklers","Emergency lighting","Proximity to other buildings/hazards","Building security measures","Fire size (HRR)"]
[null,null,null,"ActiveFireControl","Smoke barriers","Special hazard suppression","Photoluminescent systems","Proximity to fire stations","Occupant load","Flame size"]
[null,null,null,"Egress","External Exposure control","Internal hydrants","Signage",null,"Occupant characteristics","Growth rate"]
[null,null,null,"Location","Fire Service access","Hose reels","Egress route design",null,"Building use/classification","Smoke yield"]
[null,null,null,"General","Surface finish","Manual extinguishers",null,null,"Building size and shape","Toxic species yield/concentration"]
[null,null,null,"DesignFireCharacteristics","Fire resistance rating","Emergency information",null,null,"Enclosure Size and shape","Smoke optical density"]
[null,null,null,null,"Fuel load","Evacuation plan",null,null,"Preventative and protective training"]
[null,null,null,null,"Location, nature and status of openings","Fire Service alarm connection",null,null,"Maintenance regime"]
[null,null,null,null,"Fire cell size","Fire control room"]
[null,null,null,null,null,"Automatic fire detection"]
[null,null,null,null,null,"Fire alarm/warning"]
[null,null,null,null,null,"Smoke control"]
[null,null,null,null,null,"smoke clearance"]
[null,null,null,null,null,"Water supplies"]